Workbook

Sheet Investment_Projections
B2: Welcome to our interactive investment planning tool. It provides you with "insider knowledge" on the impact of charges. Go to "Input area", enter your investment value, your target growth rate (before charges) and how long (term) you wish to invest for. Then you can compare the output in your chosen currency. It provides 7 projections; 5 of which are the most popularly recommended offshore bond products (OMI (was Royal Skandia), Generali, Royal London, Hansard, Friends) and 2 of which are UK based. These projections are at identical gross growth rates and so the differences are down to the impact of charges. You can also assess a plan already commenced (Beware - put the correct ORIGINAL term into the calculator as surrender values alter depending on this - then put the number of full years completed.)
B10: If you need any assistance with this, or further advice regarding your investment, please call us on +44 (0) 1225 436200, or email us at help@tailormadeadvice.com © Aisa Direct Ltd 2014 (worldwide)
B17: Input area
B19: Name | C19: Your Name
B20: Email | C20: You@Youremail.com
B21: Telephone | C21: 01234567890
B23: Input Currency | D23: Currency Output
B27: Invest Monthly | C27: 1000 | D27: =Calc_sheet!AM66 -> GBP (£)
B29: Growth Rate | C29: 7 | D29: %
B30: ORIGINAL Term | C30: 5 | D30: Years
B31: Company | C31: Royal London
B32: Years Completed | C32: 3 | D32: Years
C34: Bid / Offer Fund Spread
C35: 5 | D35: %
B36: ** See Disclaimer section for information
G39: Lowest Provider Return | J39: Total Return with EME | L39: Extra Growth you receive from EME
G40: =Calc_sheet!AN66 -> GBP (£) | I40: =Calc_sheet!AS61 -> 54531.69356 | J40: =Calc_sheet!AN66 -> GBP (£) | K40: =Calc_sheet!AS62 -> 69063.14812 | L40: =Calc_sheet!AS64 -> 0.2664772284 | M40: =" equal to " -> equal to | N40: =Calc_sheet!AN66 -> GBP (£) | O40: =Calc_sheet!AS63 -> 14531.45456
B42: EXAMPLE VALUATION | D42: =C31 -> Royal London | H42: Projected Value | K42: =IF(C32=0,0,Calc_sheet!AL34) -> 32465.22164 | L42: =C32&" Year" -> 3 Year | M42: Surrender Value | O42: =IF(C32=0,0,Calc_sheet!AL57) -> 32465.22164
AE44: Hallmark
AE45: Generali Vision
AE46: Royal Skandia
AE47: Royal Skandia EWA
AE48: Hansard
AE49: Ascentric
AE50: Royal London
AE51: Friends Provident
M100: © Aisa Direct Ltd 2014 (worldwide)
B102: Provider Fees
B103: =Calc_sheet!G49 -> Hallmark | C103: No Establishment fee /Surrender charge. €48 annual fee, 0.3% annual charge taken quarterly Fund charges 0.9% (Inception fee £500)
B104: =Calc_sheet!G50 -> Generali Vision | C104: As published in Generali Vision doc "Plan for Life"
B105: =Calc_sheet!G51 -> OMI (Royal Skandia) | C105: As published in Royal Skandia "Managed Pension Account" - Regular savings plan
B106: =Calc_sheet!G53 -> Hansard | C106: As published in Hansard "Capital Builder" - Regular savings plan
B107: =Calc_sheet!G54 -> Ascentric | C107: No Establishment fee /Surrender charge. 0.25% annual charge taken monthly. Fund charges 0.6% (Inception fee £500) - only available in sterling
B108: =Calc_sheet!G55 -> Royal London | C108: As published in Royal London "Quantum" - Regular savings plan
B109: =Calc_sheet!G56 -> Friends Provident | C109: As published in Friends Provident International doc "Premier Advance" - Regular savings plan
B111: Disclaimer
B112: If the option "Ongoing Service Fee" is ticked then it shows the projections taking into account an annual investment fee of 1%
B113: If "Fund Growth Taxed" is ticked then it allows for CGT/Income &Corporation Tax on annual growth within the funds only. It does NOT allow
B114: for your own personal tax on realised funds, or at the point of access. You must contact a local accountant for personal taxes.
B115: Some companies have bid/offer spreads on their funds (A charge between the buying and selling of funds). You can select between 0-5%.
B116: These projections are not authorised as official by the companies and they take into account the additional charges for
B117: trading infrequently on the relevant platforms (buying and selling a share or collective), as well as fund charges incurred.
B118: Exchange rates (July 2014) are £/$ 1.66, £/€ 1.22, €/$ 1.37
B119: The value of investments can go up as well as down and past performance should not be used as a guide to future returns.
B120: The actual growth received on an investment will depend on the performance of the underlying assets.
B121: The same growth rate is used for all providers, and that growth rate is selected by the user above.
B122: For full cash-flow proections and and an accurate guide to requirements then please contact us for projections that will
B123: be personalised to the user (you) with more accurate figures. These projections should not be used in isolation.

Sheet Calc_sheet (hidden)
B1: Percentage charges (%) | T1: Fee's (Including QROPS Trustees) | Y1: Dealing charges
B2: Initial Allocation | C2: Establishment Charge | D2: How often | E2: How many years? | F2: Annual Charge | H2: Fund Charges | I2: 1 Cost | J2: 2 Cost | K2: 3 Cost | L2: 4 Cost | M2: 5 Cost | N2: 6 Cost | O2: 7 Cost | P2: 8 Cost | Q2: 9 Cost | R2: 10 Cost | S2: 11 Cost | T2: Currency | U2: Admin / Portfolio (annual) | V2: Service Charge (annual) | W2: How often | X2: Actual Cost | Y2: Currency or percentage | Z2: Dealing charge | AA2: Deals | AB2: Cost
A4: Hallmark | B4: 100 | C4: 0 | E4: 1 | F4: 0.3 | G4: monthly | H4: 0.9 | I4: =($F$4*POWER(1+(1/100),12))+$H$4 -> 1.238047509 | J4: =($F$4*POWER(1+(1/100),12))+$H$4 -> 1.238047509 | K4: 1.238047509 | L4: 1.238047509 | M4: 1.238047509 | N4: 1.238047509 | O4: 1.238047509 | P4: 1.238047509 | Q4: 1.238047509 | R4: 1.238047509 | S4: 1.238047509 | T4: Euro | U4: =48/1.2 -> 40 | V4: 0 | W4: monthly | X4: =(((U4+V4)*POWER(1+(1/100),12))) -> 45.07300121 | Y4: % | Z4: 0 | AA4: =$A$38*2 -> 0 | AB4: =IF(Y4="%",$A$39*Z4%*AA4,AA4*Z4) -> 0 | AC4: =A4 -> Hallmark
A5: Generali<2 | B5: =IF(C21>14999,105,IF(C21>9999,104,IF(C21>7199,103,IF(C21>5399,102,IF(C21>3599,101,100))))) -> 104 | F5: 1.5 | G5: monthly | H5: 0.9 | I5: =(($F$5)*POWER(1+(1/100),12))+$H$5 -> 2.590237545 | J5: =(($F$5)*POWER(1+(1/100),12))+$H$5 -> 2.590237545 | K5: 2.590237545 | L5: 2.590237545 | M5: 2.590237545 | N5: 2.590237545 | O5: 2.590237545 | P5: 2.590237545 | Q5: 2.590237545 | R5: 2.590237545 | S5: 2.590237545 | AC5: =A5 -> Generali<2
A6: Generali Vision | B6: =IF(C21>14999,105,IF(C21>9999,104,IF(C21>7199,103,IF(C21>5399,102,IF(C21>3599,101,100))))) -> 104 | F6: 1.5 | G6: monthly | H6: 0.9 | K6: =(($F$6)*POWER(1+(1/100),12))+$H$6 -> 2.590237545 | L6: =(($F$6)*POWER(1+(1/100),12))+$H$6 -> 2.590237545 | M6: 2.590237545 | N6: 2.590237545 | O6: 2.590237545 | P6: 2.590237545 | Q6: 2.590237545 | R6: 2.590237545 | S6: 2.590237545 | T6: £ | U6: =3*12 -> 36 | W6: monthly | X6: =(((U6+V6)*POWER(1+(1/100),12))) -> 40.56570108 | Y6: Euro | Z6: 50 | AA6: =$A$38*2 -> 0 | AB6: =IF(Y6="%",$A$39*Z6%*AA6,AA6*Z6) -> 0 | AC6: Generali Vision
A7: OMI (Royal Skandia) | B7: 93 | C7: 0 | F7: 1 | G7: monthly | H7: 1.75 | I7: =(((100-$B$7)+$F$7)*POWER(1+(1/100),12))+$H$7 -> 10.76460024 | J7: =(((100-$B$7)+$F$7)*POWER(1+(1/100),12))+$H$7 -> 10.76460024 | K7: 10.76460024 | L7: 10.76460024 | M7: 10.76460024 | N7: 10.76460024 | O7: 10.76460024 | P7: 10.76460024 | Q7: 10.76460024 | R7: 10.76460024 | S7: 10.76460024 | T7: £ | U7: =8.6*12 -> 103.2 | V7: 0 | W7: monthly | X7: =(((U7+V7)*POWER(1+(1/100),12))) -> 116.2883431 | AC7: OMI (Royal Skandia)
A8: Hansard 2 years | B8: 100 | C8: 8 | D8: monthly | E8: 2 | F8: 8 | G8: monthly | H8: 1.75 | I8: =(($C$8+$F$8)*POWER(1+(1/100),12))+$H$8 -> 19.77920048 | J8: =(($C$8+$F$8)*POWER(1+(1/100),12))+$H$8 -> 19.77920048 | K8: =(($F$8)*POWER(1+(1/100),12))+$H$8 -> 10.76460024 | L8: =(($F$8)*POWER(1+(1/100),12))+$H$8 -> 10.76460024 | M8: 10.76460024 | N8: 10.76460024 | O8: 10.76460024 | P8: 10.76460024 | Q8: 10.76460024 | R8: 10.76460024 | S8: 10.76460024 | T8: £ | U8: =(12*12)+100 -> 244 | V8: 0 | W8: monthly | X8: 274.9453074 | Y8: £ | Z8: 15 | AA8: =$A$38*2 -> 0 | AB8: =IF(Y8="%",$A$39*Z8%*AA8,AA8*Z8) -> 0 | AC8: Hansard 2 years
A9: Hansard after 2 | B9: 100 | C9: 0 | F9: 1 | G9: monthly | H9: 1.75 | K9: =(($F$9)*POWER(1+(1/100),12))+$H$8 -> 2.87682503 | L9: 2.87682503 | M9: 2.87682503 | N9: 2.87682503 | O9: 2.87682503 | P9: 2.87682503 | Q9: 2.87682503 | R9: 2.87682503 | S9: 2.87682503 | T9: £ | V9: 0 | W9: monthly | X9: =(((U9+V9)*POWER(1+(1/100),12))) -> 0 | Y9: £ | AA9: =$A$38*2 -> 0 | AB9: 0 | AC9: Hansard after 2
A10: Ascentric | B10: 100 | C10: 0 | E10: 1 | F10: 0.25 | G10: monthly | H10: =$A$44-1 -> 0.6 | I10: =(F10*POWER(1+(1/100),4))+H10+C10 -> 0.8601510025 | J10: =(($F$10)*POWER(1+(1/100),12))+$H$10 -> 0.8817062575 | K10: 0.8817062575 | L10: 0.8817062575 | M10: 0.8817062575 | N10: 0.8817062575 | O10: 0.8817062575 | P10: 0.8817062575 | Q10: 0.8817062575 | R10: 0.8817062575 | S10: 0.8817062575 | T10: £ | U10: =IF(C27/4>190,500,IF(C27=0,0,150)) -> 150 | V10: 0 | W10: monthly | X10: 169.0237545 | Y10: £ | Z10: 12.5 | AA10: =$A$38*2 -> 0 | AB10: 0 | AC10: Ascentric
A11: Royal London<2 | B11: 100 | C11: 0 | D11: monthly | E11: 2 | F11: =6+(0.125*12) -> 7.5 | H11: =$A$44/1 -> 1.6 | I11: =(($F$11)*POWER(1+(1/100),12))+$H$11 -> 10.05118773 | J11: =(($F$11*8/12)*POWER(1+(1/100),12))+$H$11 -> 7.234125151 | K11: =(($F$11)*POWER(1+(1/100),12))+$H$11 -> 10.05118773 | L11: =(($F$11)*POWER(1+(1/100),12))+$H$11 -> 10.05118773 | M11: 10.05118773 | N11: 10.05118773 | O11: 10.05118773 | P11: 10.05118773 | Q11: 10.05118773 | R11: 10.05118773 | S11: 10.05118773 | T11: £ | U11: =5*12 -> 60 | V11: 0 | W11: monthly | X11: 67.60950181 | Y11: £ | Z11: 20 | AA11: =IF($A$38>5,($A$38*2)-10,0) -> 0 | AB11: 0 | AC11: Royal London<2
A12: Royal London>2 | B12: 100 | C12: 0 | F12: =0.125*12 -> 1.5 | H12: 1.6 | K12: =(($F$12)*POWER(1+(1/100),12))+$H$12 -> 3.290237545 | L12: =(($F$12)*POWER(1+(1/100),12))+$H$12 -> 3.290237545 | M12: 3.290237545 | N12: 3.290237545 | O12: 3.290237545 | P12: 3.290237545 | Q12: 3.290237545 | R12: 3.290237545 | S12: 3.290237545 | T12: £ | V12: 0 | W12: monthly | X12: =(((U12+V12)*POWER(1+(1/100),12))) -> 0 | Y12: £ | AA12: =IF($A$38>5,($A$38*2)-10,0) -> 0 | AB12: 0 | AC12: Royal London>2
A13: F Prov<2 | B13: 100 | F13: 6 | H13: 1.75 | I13: =(($F$13)*POWER(1+(1/100),4))+$H$13 -> 7.99362406 | J13: =(($F$13)*POWER(1+(1/100),4))+$H$13 -> 7.99362406 | K13: 7.99362406 | L13: 7.99362406 | M13: 7.99362406 | N13: 7.99362406 | O13: 7.99362406 | P13: 7.99362406 | Q13: 7.99362406 | R13: 7.99362406 | S13: 7.99362406 | T13: £ | U13: =4*12 -> 48 | V13: 0 | W13: monthly | X13: =(((U13+V13)*POWER(1+(1/100),12))) -> 54.08760145 | Y13: £ | AA13: =IF($A$38>5,($A$38*2)-10,0) -> 0 | AB13: 0 | AC13: F Prov<2
A14: Friends Provident | B14: 100 | C14: 0 | E14: 0 | F14: 1.2 | H14: 1.75 | K14: =(($F$14)*POWER(1+(1/100),12))+$H$14 -> 3.102190036 | L14: =(($F$14)*POWER(1+(1/100),12))+$H$14 -> 3.102190036 | M14: 3.102190036 | N14: 3.102190036 | O14: 3.102190036 | P14: 3.102190036 | Q14: 3.102190036 | R14: 3.102190036 | S14: 3.102190036 | T14: £ | U14: 0 | V14: 0 | W14: monthly | X14: 0 | Y14: £ | AA14: =IF($A$38>5,($A$38*2)-10,0) -> 0 | AB14: 0 | AC14: Friends Provident
D16: Output - no surrender
I17: 1 | J17: 2 | K17: 3 | L17: 4 | M17: 5 | N17: 6 | O17: 7 | P17: 8 | Q17: 9 | R17: 10 | S17: 11 | T17: 12 | U17: 13 | V17: 14 | W17: 15 | X17: 16 | Y17: 17 | Z17: 18 | AA17: 19 | AB17: 20 | AC17: 21 | AD17: 22 | AE17: 23 | AF17: 24 | AG17: 25 | AI17: RETURN
A18: INPUT SHEET | H18: =A4 -> Hallmark | I18: =$D$21*(100+$C$22-I4)%-(($X4+$AB4)*(100+$C$22/$H$45)%) -> 12308.46823 | J18: =$D$21*(100+$C$22-J4)%-(($X4+$AB4)*(100+$C$22/$L$45)%)+I18*(100+$D$22-J4)% -> 25326.14456 | K18: =$D$21*(100+$C$22-K4)%-(($X4+$AB4)*(100+$C$22/$L$45)%)+J18*(100+$D$22-K4)% -> 39093.8932 | L18: 53654.93299 | M18: 69054.97297 | N18: 85342.35594 | O18: 102568.2102 | P18: 120786.6099 | Q18: 140054.7453 | R18: 160433.1014 | S18: =$D$21*(100+$C$22-$S$4)%-(($X4+$AB4)*(100+$C$22/$L$45)%)+R18*(100+$D$22-$S$4)% -> 181985.6487 | T18: =$D$21*(100+$C$22-$S$4)%-(($X4+$AB4)*(100+$C$22/$L$45)%)+S18*(100+$D$22-$S$4)% -> 204780.0435 | U18: =$D$21*(100+$C$22-$S$4)%-(($X4+$AB4)*(100+$C$22/$L$45)%)+T18*(100+$D$22-$S$4)% -> 228887.8406 | V18: 254384.7174 | W18: 281350.7122 | X18: 309870.4748 | Y18: 340033.5326 | Z18: 371934.5715 | AA18: 405673.733 | AB18: 441356.929 | AC18: 479096.1738 | AD18: 519009.9359 | AE18: 561223.5101 | AF18: 605869.4103 | AG18: 653087.7862 | AI18: =HLOOKUP($C$24,$I$17:$AH$33,2) -> 69054.97297 | AJ18: =H18 -> Hallmark | AK18: =HLOOKUP($C$25,$I$17:$AH$33,2) -> 39093.8932 | AL18: =IF(AJ18=$C$30,AK18,0) -> 0
H19: =A5 -> Generali<2 | I19: =$C$21*$B$5%*(100+$C$22-I5)%-(($X5+$AB5)*(100+$C$22/$H$45)%)-$H$77 -> 10906.85344 | J19: =$C$21*$B$5%*(100+$C$22-J5)%-(($X5+$AB5)*(100+$C$22/$L$45)%)+I19*(100+$D$22-J5)%-$H$77 -> 22294.6732 | K19: =(J19*(100+$D$22-K5)%)-$H$77 -> 22137.81533 | L19: =(K19*(100+$D$22-L5)%)-$H$77 -> 21974.0404 | M19: 21803.04338 | N19: 21624.5058 | O19: 21438.09514 | P19: 21243.46421 | Q19: =IF((P19-$H$77)<0,0,(P19*(100+$D$22-$S$5)%)-$H$77) -> 21040.25052 | R19: =IF((Q19-$H$77)<0,0,(Q19*(100+$D$22-$S$5)%)-$H$77) -> 20828.07559 | S19: =IF((R19-$H$77)<0,0,(R19*(100+$D$22-$S$5)%)-$H$77) -> 20606.54424 | T19: =IF((S19-$H$77)<0,0,(S19*(100+$D$22-$S$5)%)-$H$77) -> 20375.2439 | U19: 20133.74375 | V19: 19881.59402 | W19: 19618.32509 | X19: 19343.44663 | Y19: 19056.44667 | Z19: 18756.7907 | AA19: 18443.92062 | AB19: 18117.25371 | AC19: 17776.18156 | AD19: 17420.06894 | AE19: 17048.2526 | AF19: 16660.04004 | AG19: 16254.70823 | AJ19: t | AL19: 0
H20: Generali>2 | K20: =$C$21*$B$6%*(100+$C$22-K6)%-(($X6+$AB6)*(100+$C$22/$L$45)%) -> 12004.58398 | L20: =$C$21*(100+$C$22-L6)%-(($X6+$AB6)*(100+$C$22/$L$45)%)+(K20*(100+$D$22-L6)%) -> 24075.20107 | M20: =$C$21*(100+$C$22-M6)%-(($X6+$AB6)*(100+$C$22/$L$45)%)+(L20*(100+$D$22-M6)%) -> 36678.10371 | N20: 49836.76442 | O20: 63575.6908 | P20: 77920.4712 | Q20: 92897.82235 | R20: =$C$21*(100+$C$22-R6)%-(($X6+$AB6)*(100+$C$22/$L$45)%)+(Q20*(100+$D$22-R6)%)+R35 -> 114235.6391 | S20: =$C$21*(100+$C$22-$S$6)%-(($X6+$AB6)*(100+$C$22/$L$45)%)+(R20*(100+$D$22-$S$6)%) -> 130814.4029 | T20: =$C$21*(100+$C$22-$S$6)%-(($X6+$AB6)*(100+$C$22/$L$45)%)+(S20*(100+$D$22-$S$6)%) -> 148124.2508 | U20: 166197.4218 | V20: 185067.5768 | W20: =$C$21*(100+$C$22-$S$6)%-(($X6+$AB6)*(100+$C$22/$L$45)%)+(V20*(100+$D$22-$S$6)%)+W35 -> 207619.8608 | X20: 228316.6469 | Y20: 249926.1121 | Z20: 272488.5034 | AA20: 296045.8426 | AB20: =$C$21*(100+$C$22-$S$6)%-(($X6+$AB6)*(100+$C$22/$L$45)%)+(AA20*(100+$D$22-$S$6)%)+AB35 -> 323492.0045 | AC20: 349298.4769 | AD20: 376242.9535 | AE20: 404375.6174 | AF20: 433748.865 | AG20: 464417.4031 | AJ20: t | AL20: 0
A21: Investment | C21: =D21*((100-C27)/100) -> 11400 | D21: =Investment_Projections!C27*12 -> 12000 | E21: Aisa Fees | H21: =A6 -> Generali Vision | I21: =SUM(I19:I20) -> 10906.85344 | J21: =SUM(J19:J20) -> 22294.6732 | K21: 34142.39931 | L21: 46049.24147 | M21: 58481.14709 | N21: 71461.27022 | O21: 85013.78594 | P21: 99163.93541 | Q21: 113938.0729 | R21: 135063.7147 | S21: 151420.9471 | T21: 168499.4947 | U21: 186331.1656 | V21: 204949.1708 | W21: 227238.1859 | X21: 247660.0935 | Y21: 268982.5588 | Z21: 291245.2941 | AA21: 314489.7632 | AB21: 341609.2582 | AC21: 367074.6585 | AD21: 393663.0224 | AE21: 421423.87 | AF21: 450408.9051 | AG21: 480672.1113 | AI21: =HLOOKUP($C$24,$I$17:$AH$33,5) -> 58481.14709 | AJ21: =H21 -> Generali Vision | AK21: =HLOOKUP($C$25,$I$17:$AH$33,5) -> 34142.39931 | AL21: 0
A22: Growth Rate | C22: =D22*60/100 -> 4.2 | D22: =IF(E27,Investment_Projections!C29*0.96,Investment_Projections!C29)-(C28*80%) -> 7 | E22: FALSE | H22: =A7 -> OMI (Royal Skandia) | I22: =$D$21*(100+$C$22-I7)%-(($X7+$AB7)*(100+$C$22/$H$45)%) -> 11091.07552 | J22: =$D$21*(100+$C$22-J7)%-(($X7+$AB7)*(100+$C$22/$L$45)%)+I22*(100+$D$22-(J7-7))% -> 22540.99167 | K22: =$D$21*(100+$C$22-K7)%-(($X7+$AB7)*(100+$C$22/$L$45)%)+J22*(100+$D$22-(K7-7))% -> 34361.35837 | L22: 46564.1612 | M22: 59161.77347 | N22: 72166.96887 | O22: 85592.93432 | P22: 99453.28343 | Q22: 113762.0702 | R22: 128533.8035 | S22: =$C$21*(100+$C$22-$S$7)%-(($X7+$AB7)*(100+$C$22/$L$45)%)+R22*(100+$D$22-($S$7-7))% -> 143222.849 | T22: =$C$21*(100+$C$22-$S$7)%-(($X7+$AB7)*(100+$C$22/$L$45)%)+S22*(100+$D$22-($S$7-7))% -> 158387.1438 | U22: 174042.0642 | V22: 190203.4839 | W22: =$C$21*(100+$C$22-$S$7)%-(($X7+$AB7)*(100+$C$22/$L$45)%)+V22*(100+$D$22-($S$7-7))%+($W$36*(W17-$V$17)) -> 209262.79 | X22: =$C$21*(100+$C$22-$S$7)%-(($X7+$AB7)*(100+$C$22/$L$45)%)+W22*(100+$D$22-($S$7-7))%+($W$36*(X17-$V$17)) -> 231313.741 | Y22: 256453.1283 | Z22: 284780.8753 | AA22: 316400.1382 | AB22: 351417.4106 | AC22: =$C$21*(100+$C$22-$S$7)%-(($X7+$AB7)*(100+$C$22/$L$45)%)+AB22*(100+$D$22-($S$7-7))% -> 373317.6318 | AD22: =$C$21*(100+$C$22-$S$7)%-(($X7+$AB7)*(100+$C$22/$L$45)%)+AC22*(100+$D$22-($S$7-7))% -> 395926.4127 | AE22: 419266.678 | AF22: 443362.0942 | AG22: 468237.0934 | AI22: =HLOOKUP($C$24,$I$17:$AH$33,6) -> 59161.77347 | AJ22: OMI (Royal Skandia) | AK22: =HLOOKUP($C$25,$I$17:$AH$33,6) -> 34361.35837 | AL22: 0
A23: Growth Rate | C23: =D23*60/100 -> -16413 | D23: =IF(E28,Investment_Projections!C30*0.96,Investment_Projections!C30)-(C29*80%) -> -27355 | E23: FALSE | H23: OMI EWA | I23: =I22 -> 11091.07552 | J23: =J22*98/100 -> 22090.17183 | K23: =K22*98/100 -> 33674.13121 | L23: 45632.87797 | M23: 57978.538 | N23: 70723.62949 | O23: 83881.07564 | P23: 97464.21776 | Q23: 111486.8288 | R23: =R22*99/100 -> 127248.4655 | S23: 141790.6205 | T23: 156803.2724 | U23: =U22*99/100 -> 172301.6436 | V23: =V22 -> 190203.4839 | W23: =$C$21*(100+$C$22-$S$7)%-(($X7+$AB7)*(100+$C$22/$L$45)%)+V23*(100+$D$22-($S$7-7))% -> 206887.79 | X23: =$C$21*(100+$C$22-$S$7)%-(($X7+$AB7)*(100+$C$22/$L$45)%)+W23*(100+$D$22-($S$7-7))% -> 224111.9002 | Y23: 241893.2792 | Z23: 260249.9569 | AA23: 279200.5465 | AB23: 298764.2634 | AC23: 318960.9448 | AD23: 339811.0696 | AE23: 361335.7792 | AF23: 383556.8993 | AG23: 406496.9614 | AI23: =HLOOKUP($C$24,$I$17:$AH$33,7) -> 57978.538 | AJ23: =H23 -> OMI EWA | AK23: =HLOOKUP($C$25,$I$17:$AH$33,7) -> 33674.13121 | AL23: 0
A24: Term | C24: =Investment_Projections!C30 -> 5 | H24: =A8 -> Hansard 2 years | I24: =$C$21*(100+$C$22-I8)%-(($X8+$AB8)*(100+$C$22/$H$45)%) -> 9337.478135 | J24: =$C$21*(100+$C$22-J8)%-(($X8+$AB8)*(100+$C$22/$L$45)%)+I24*(100+$D$22-J8)% -> 17481.70122 | K24: =(J24*(100+$D$22-K8)%) -> 16823.58505 | L24: 16190.24433 | M24: 15580.74635 | N24: 14994.19354 | O24: 14429.72209 | P24: 13886.50074 | Q24: 13363.7295 | R24: 12860.63851 | S24: =(R24*(100+$D$22-$S$8)%) -> 12376.48688 | T24: 11910.56162 | U24: 11462.17659 | V24: 11030.67146 | W24: 10615.41078 | X24: 10215.783 | Y24: 9831.199608 | Z24: 9461.094244 | AA24: 9104.921867 | AB24: 8762.157956 | AC24: 8432.297737 | AD24: 8114.855436 | AE24: 7809.363569 | AF24: 7515.372249 | AG24: 7232.448527 | AI24: 0 | AJ24: t | AK24: 0 | AL24: 0
A25: =Investment_Projections!B32 -> Years Completed | C25: =Investment_Projections!C32 -> 3 | H25: =A9 -> Hansard after 2 | K25: =$C$21*(100+$C$22-K9)%-(($X9+$AB9)*(100+$C$22/$L$45)%) -> 11550.84195 | L25: =$C$21*(100+$C$22-L9)%-(($X9+$AB9)*(100+$C$22/$L$45)%)+(K25*(100+$D$22-L9)%) -> 23577.94532 | M25: =$C$21*(100+$C$22-M9)%-(($X9+$AB9)*(100+$C$22/$L$45)%)+(L25*(100+$D$22-M9)%)+M34 -> 38950.9472 | N25: 52107.80486 | O25: 65807.14277 | P25: 80071.32835 | Q25: 94923.65127 | R25: =$C$21*(100+$C$22-R9)%-(($X9+$AB9)*(100+$C$22/$L$45)%)+(Q25*(100+$D$22-R9)%)+R34 -> 113238.3614 | S25: =$C$21*(100+$C$22-$S$9)%-(($X9+$AB9)*(100+$C$22/$L$45)%)+(R25*(100+$D$22-$S$9)%) -> 129458.2192 | T25: 146346.85 | U25: 163931.8286 | V25: 182241.8667 | W25: =$C$21*(100+$C$22-$S$9)%-(($X9+$AB9)*(100+$C$22/$L$45)%)+(V25*(100+$D$22-$S$9)%)+W34 -> 204156.8597 | X25: 224125.4462 | Y25: 244917.3724 | Z25: 266566.5862 | AA25: 289108.4349 | AB25: =$C$21*(100+$C$22-$S$9)%-(($X9+$AB9)*(100+$C$22/$L$45)%)+(AA25*(100+$D$22-$S$9)%)+AB34 -> 315429.7234 | AC25: 339986.2848 | AD25: 365555.3561 | AE25: 392178.685 | AF25: 419899.7403 | AG25: 448763.7833 | AI25: 0 | AJ25: t | AK25: 0 | AL25: 0
A26: Years Left | C26: =C24-C25 -> 2 | H26: Hansard | I26: =SUM(I24:I25) -> 9337.478135 | J26: =SUM(J24:J25) -> 17481.70122 | K26: 28374.427 | L26: 39768.18965 | M26: =SUM(M24:M25) -> 54531.69356 | N26: =SUM(N24:N25) -> 67101.99839 | O26: 80236.86486 | P26: =SUM(P24:P25) -> 93957.82909 | Q26: =SUM(Q24:Q25) -> 108287.3808 | R26: 126099 | S26: 141834.706 | T26: =SUM(T24:T25) -> 158257.4116 | U26: =SUM(U24:U25) -> 175394.0052 | V26: =SUM(V24:V25) -> 193272.5382 | W26: =SUM(W24:W25) -> 214772.2705 | X26: =SUM(X24:X25) -> 234341.2292 | Y26: =SUM(Y24:Y25) -> 254748.572 | Z26: =SUM(Z24:Z25) -> 276027.6804 | AA26: =SUM(AA24:AA25) -> 298213.3567 | AB26: =SUM(AB24:AB25) -> 324191.8814 | AC26: =SUM(AC24:AC25) -> 348418.5825 | AD26: =SUM(AD24:AD25) -> 373670.2116 | AE26: =SUM(AE24:AE25) -> 399988.0486 | AF26: =SUM(AF24:AF25) -> 427415.1126 | AG26: =SUM(AG24:AG25) -> 455996.2318 | AI26: =HLOOKUP($C$24,$I$17:$AH$33,10) -> 54531.69356 | AJ26: Hansard | AK26: =HLOOKUP($C$25,$I$17:$AH$33,10) -> 28374.427 | AL26: =IF(AJ26=$C$30,AK26,0) -> 0
C27: =Investment_Projections!C35 -> 5 | D27: Comms | E27: FALSE | F27: FALSE | H27: =A10 -> Ascentric | I27: =$D$21*(100+$C$22-I10)%-(($X10+$AB10)*(100+$C$22/$H$45)%) -> 12224.65913 | J27: =$D$21*(100+$C$22-J10)%-(($X10+$AB10)*(100+$C$22/$L$45)%)+I27*(100+$D$22-J10)% -> 25194.67218 | K27: =$D$21*(100+$C$22-K10)%-(($X10+$AB10)*(100+$C$22/$L$45)%)+J27*(100+$D$22-K10)% -> 38958.22873 | L27: 53563.88009 | M27: 69063.14812 | N27: 85510.70688 | O27: 102964.5756 | P27: 121486.3233 | Q27: 141141.2859 | R27: 161998.7969 | S27: =$D$21*(100+$C$22-$S$10)%-(($X10+$AB10)*(100+$C$22/$L$45)%)+R27*(100+$D$22-$S$10)% -> 184132.4316 | T27: =$D$21*(100+$C$22-$S$10)%-(($X10+$AB10)*(100+$C$22/$L$45)%)+S27*(100+$D$22-$S$10)% -> 207620.2671 | U27: =$D$21*(100+$C$22-$S$10)%-(($X10+$AB10)*(100+$C$22/$L$45)%)+T27*(100+$D$22-$S$10)% -> 232545.1575 | V27: 258995.0258 | W27: 287063.1747 | X27: 316848.6155 | Y27: 348456.417 | Z27: 381998.0766 | AA27: 417591.9136 | AB27: 455363.486 | AC27: 495446.0341 | AD27: 537980.9503 | AE27: 583118.2777 | AF27: 631017.2392 | AG27: 681846.8 | AI27: =HLOOKUP($C$24,$I$17:$AH$33,11) -> 69063.14812 | AJ27: Ascentric | AK27: =HLOOKUP($C$25,$I$17:$AH$33,11) -> 38958.22873 | AL27: 0
A28: Aisa regular fee | C28: =IF(E22,1,0) -> 0 | D28: 7 | H28: =A11 -> Royal London<2 | I28: =$C$21*(100+$C$22-I11)%-(($X11+$AB11)*(100+$C$22/$H$45)%) -> 10662.5155 | J28: =$C$21*(100+$C$22-J11)%-(($X11+$AB11)*(100+$C$22/$L$45)%)+I28*(100+$D$22-J11)% -> 21621.2125 | K28: =(J28*(100+$D$22-K11)%) -> 20961.50872 | L28: =(K28*(100+$D$22-L11)%) -> 20321.93374 | M28: 19701.87339 | N28: 19100.73225 | O28: 18517.93305 | P28: 17952.91615 | Q28: 17405.13897 | R28: 16874.07551 | S28: =(R28*(100+$D$22-$S$11)%) -> 16359.21579 | T28: =(S28*(100+$D$22-$S$11)%) -> 15860.0654 | U28: 15376.14504 | V28: 14906.98999 | W28: 14452.14974 | X28: 14011.18752 | Y28: 13583.67988 | Z28: 13169.21631 | AA28: 12767.3988 | AB28: 12377.84149 | AC28: 12000.17031 | AD28: 11634.02259 | AE28: 11279.04672 | AF28: 10934.90183 | AG28: 10601.25745 | AI28: 0 | AJ28: t | AK28: 0 | AL28: 0
A29: Total Contribution | C29: =C21*C25 -> 34200 | H29: =A12 -> Royal London>2 | K29: =$C$21*(100+$C$22-K12)%-(($X12+$AB12)*(100+$C$22/$L$45)%) -> 11503.71292 | L29: =$C$21*(100+$C$22-L12)%-(($X14+$AB14)*(100+$C$22/$L$45)%)+(K29*(100+$D$22-L12)%) -> 23434.18626 | M29: =$C$21*(100+$C$22-M12)%-(($X14+$AB14)*(100+$C$22/$L$45)%)+(L29*(100+$D$22-M12)%) -> 35807.25183 | N29: 48639.32873 | O29: 61947.44521 | P29: 75749.26119 | Q29: 90063.09176 | R29: 104907.9314 | S29: =$C$21*(100+$C$22-$S$12)%-(($X14+$AB14)*(100+$C$22/$L$45)%)+(R29*(100+$D$22-$S$12)%) -> 120303.4794 | T29: =$C$21*(100+$C$22-$S$12)%-(($X14+$AB14)*(100+$C$22/$L$45)%)+(S29*(100+$D$22-$S$12)%) -> 136270.1656 | U29: =$C$21*(100+$C$22-$S$12)%-(($X14+$AB14)*(100+$C$22/$L$45)%)+(T29*(100+$D$22-$S$12)%) -> 152829.178 | V29: 170002.4904 | W29: 187812.8919 | X29: 206284.0169 | Y29: 225440.3769 | Z29: 245307.3923 | AA29: 265911.4267 | AB29: 287279.8219 | AC29: 309440.9338 | AD29: 332424.1703 | AE29: 356260.0303 | AF29: 380980.144 | AG29: 406617.3153 | AI29: 0 | AJ29: t | AK29: 0 | AL29: 0
A30: Provider | C30: =Investment_Projections!C31 -> Royal London | H30: Royal London | I30: =SUM(I28:I29) -> 10662.5155 | J30: =SUM(J28:J29) -> 21621.2125 | K30: =SUM(K28:K29) -> 32465.22164 | L30: =SUM(L28:L29) -> 43756.12 | M30: =SUM(M28:M29) -> 55509.12521 | N30: =SUM(N28:N29) -> 67740.06098 | O30: =SUM(O28:O29) -> 80465.37825 | P30: =SUM(P28:P29) -> 93702.17734 | Q30: =SUM(Q28:Q29) -> 107468.2307 | R30: =SUM(R28:R29) -> 121782.007 | S30: =SUM(S28:S29) -> 136662.6952 | T30: =SUM(T28:T29) -> 152130.2311 | U30: =SUM(U28:U29) -> 168205.323 | V30: =SUM(V28:V29) -> 184909.4804 | W30: =SUM(W28:W29) -> 202265.0416 | X30: =SUM(X28:X29) -> 220295.2045 | Y30: =SUM(Y28:Y29) -> 239024.0568 | Z30: =SUM(Z28:Z29) -> 258476.6086 | AA30: =SUM(AA28:AA29) -> 278678.8255 | AB30: =SUM(AB28:AB29) -> 299657.6634 | AC30: =SUM(AC28:AC29) -> 321441.1041 | AD30: =SUM(AD28:AD29) -> 344058.1929 | AE30: =SUM(AE28:AE29) -> 367539.077 | AF30: =SUM(AF28:AF29) -> 391915.0459 | AG30: =SUM(AG28:AG29) -> 417218.5728 | AI30: =HLOOKUP($C$24,$I$17:$AH$33,14) -> 55509.12521 | AJ30: Royal London | AK30: =HLOOKUP($C$25,$I$17:$AH$33,14) -> 32465.22164 | AL30: 32465.22164
H31: =A13 -> F Prov<2 | I31: =$C$21*(100+$C$22-I13)%-(($X13+$AB13)*(100+$C$22/$H$45)%) -> 10911.16758 | J31: =$C$21*(100+$C$22-J13)%-(($X13+$AB13)*(100+$C$22/$L$45)%)+I31*(100+$D$22-J13)% -> 21713.91917 | K31: =(J31*(100+$D$22-K13)%) -> 21498.16444 | L31: 21284.55351 | M31: 21073.06506 | N31: 20863.67802 | O31: 20656.37149 | P31: 20451.12482 | Q31: 20247.91752 | R31: 20046.72934 | S31: =(R31*(100+$D$22-$S$13)%) -> 19847.54021 | T31: =(S31*(100+$D$22-$S$13)%) -> 19650.33028 | U31: 19455.07987 | V31: 19261.76951 | W31: 19070.37994 | X31: 18880.89205 | Y31: 18693.28697 | Z31: 18507.54597 | AA31: 18323.65054 | AB31: 18141.58234 | AC31: 17961.32321 | AD31: 17782.85519 | AE31: 17606.16046 | AF31: 17431.22141 | AG31: 17258.0206 | AI31: 0 | AJ31: t | AK31: 0 | AL31: =IF(AJ31=$C$30,AK31,0) -> 0
H32: F Prov>2 | K32: =$C$21*(100+$C$22-K14)%-(($X14+$AB14)*(100+$C$22/$L$45)%) -> 11525.15034 | L32: =$C$21*(100+$C$22-L14)%-(($X14+$AB14)*(100+$C$22/$L$45)%)+(K32*(100+$D$22-L14)%) -> 23499.52913 | M32: 35940.64645 | N32: 48866.69489 | O32: 62296.57613 | P32: 76249.92861 | Q32: 90747.15626 | R32: 105809.4583 | S32: =$C$21*(100+$C$22-$S$14)%-(($X14+$AB14)*(100+$C$22/$L$45)%)+(R32*(100+$D$22-$S$14)%) -> 121458.8602 | T32: =$C$21*(100+$C$22-$S$14)%-(($X14+$AB14)*(100+$C$22/$L$45)%)+(S32*(100+$D$22-$S$14)%) -> 137718.2461 | U32: 154611.392 | V32: 172163.0006 | W32: 190398.7375 | X32: 209345.2688 | Y32: 229030.2999 | Z32: 249482.6161 | AA32: 270732.1247 | AB32: 292809.8987 | AC32: 315748.2225 | AD32: 339580.6385 | AE32: 364341.9968 | AF32: 390068.5058 | AG32: 416797.7852 | AI32: 0 | AJ32: t | AK32: 0 | AL32: =IF(AJ32=$C$30,AK32,0) -> 0
H33: =A14 -> Friends Provident | I33: =SUM(I31:I32) -> 10911.16758 | J33: =SUM(J31:J32) -> 21713.91917 | K33: 33023.31478 | L33: 44784.08264 | M33: 57013.71152 | N33: 69730.37291 | O33: 82952.94762 | P33: 96701.05343 | Q33: 110995.0738 | R33: 125856.1876 | S33: 141306.4005 | T33: 157368.5764 | U33: 174066.4719 | V33: 191424.7701 | W33: 209469.1174 | X33: 228226.1608 | Y33: 247723.5868 | Z33: 267990.162 | AA33: 289055.7752 | AB33: 310951.4811 | AC33: 333709.5457 | AD33: 357363.4937 | AE33: 381948.1572 | AF33: 407499.7272 | AG33: 434055.8058 | AI33: =HLOOKUP($C$24,$I$17:$AH$33,17) -> 57013.71152 | AJ33: Friends Provident | AK33: =HLOOKUP($C$25,$I$17:$AH$33,17) -> 33023.31478 | AL33: 0
H34: Hansard Bonus | M34: =$C$21*5*5% -> 2850 | R34: =$C$21*5*5% -> 2850 | W34: =$C$21*5*5% -> 2850 | AB34: =$C$21*5*5% -> 2850 | AK34: =VLOOKUP($C$30,$AJ$18:$AK$33,2) -> 33674.13121 | AL34: =SUM(AL18:AL33) -> 32465.22164
H35: Generali Bonus | R35: =$C$21*10*5% -> 5700 | W35: =$C$21*5*5% -> 2850 | AB35: =$C$21*5*5% -> 2850
W36: =IF(W34/2<4500,W34/1.2,W34/1.5) -> 2375 | AI36: =AI27-AI21 -> 10582.00102 | AT36: year 1 - X line chart
A37: Assumptions | AT37: =D21*AM67*C24 -> 60000
A38: 0 | B38: trades conducted annually (buy and sell will double) | H38: Generali Service Charge is annually reviewed in line with Irish earnings index | AS38: =G49 -> Hallmark | AT38: =AI49*$AM$67 -> 69054.97297 | AU38: =$AT$37 -> 60000
A39: 15000 | B39: value of trades conducted (buy and sell will double) | H39: Rl PIMS first 10 dealings are free | AS39: =G50 -> Generali Vision | AT39: =AI50*$AM$67 -> 58481.14709 | AU39: 60000
A40: 50000 | B40: Minimum Investment amount | H40: RL PIMS is flexible product | AS40: OMI (Royal Skandia) | AT40: =AI51*$AM$67 -> 59161.77347 | AU40: 60000
A41: 1000000 | B41: Maximum Investment amount | H41: RL PIMS 10 year set up with 10 year surrender term | AS41: =G53 -> Hansard | AT41: =AI53*$AM$67 -> 54531.69356 | AU41: 60000
A42: 2.5 | B42: Lowest growth rate | H42: RL PIMS 5 year set up with 5 year surrender term | AS42: =G54 -> Ascentric | AT42: =AI54*$AM$67 -> 69063.14812 | AU42: 60000
A43: 20 | B43: Highest growth rate | H43: If selected, then advice fees are 2% | AS43: =G55 -> Royal London | AT43: =(AI55*$AM$67)+(AI55*$AM$67*0.25%*C24) -> 56202.98928 | AU43: 60000
A44: 1.6 | B44: Fund AMC for active investments | H44: If selected, as a QROPS then the annual cost is £800 | AS44: =G56 -> Friends Provident | AT44: =AI56*$AM$67 -> 57013.71152 | AU44: 60000
C45: Impact of ongoing charges factor | H45: 1 | I45: Impact of ongoing charges year 2 onwards | L45: 1
D47: Output - after surrender
D48: Early Discontinuation | I48: 1 | J48: =J58 -> 2 | K48: =K58 -> 3 | L48: 4 | M48: 5 | N48: 6 | O48: 7 | P48: 8 | Q48: 9 | R48: 10 | S48: 11 | T48: 12 | U48: 13 | V48: 14 | W48: 15 | X48: 16 | Y48: 17 | Z48: 18 | AA48: 19 | AB48: 20 | AC48: 21 | AD48: 22 | AE48: 23 | AF48: 24 | AG48: 25 | AH48: 0 | AI48: RETURN | AT48: Year 4 discontinuation comparison
G49: =H18 -> Hallmark | I49: =I18*(100-I61)% -> 12308.46823 | J49: 25326.14456 | K49: 39093.8932 | L49: 53654.93299 | M49: 69054.97297 | N49: 85342.35594 | O49: 102568.2102 | P49: 120786.6099 | Q49: 140054.7453 | R49: 160433.1014 | S49: =S18*(100-S61)% -> 181985.6487 | T49: 204780.0435 | U49: 228887.8406 | V49: 254384.7174 | W49: 281350.7122 | X49: 309870.4748 | Y49: 340033.5326 | Z49: 371934.5715 | AA49: 405673.733 | AB49: 441356.929 | AC49: 479096.1738 | AD49: 519009.9359 | AE49: 561223.5101 | AF49: 605869.4103 | AG49: 653087.7862 | AH49: 0 | AI49: =HLOOKUP($C$24,$I$48:$AH$56,2) -> 69054.97297 | AJ49: =G49 -> Hallmark | AK49: =HLOOKUP($C$25,$I$48:$AH$56,2) -> 39093.8932 | AL49: =IF(AJ49=$C$30,AK49,0) -> 0 | AT49: Continuing with your plan | AU49: Stopping your plan early | AV49: Initial Investment Amount
G50: =H21 -> Generali Vision | I50: =IF((I21-I62)<200,I21*5%,I21-I62) -> 6346.853437 | J50: =IF((J21-J62)<200,J21*10%,J21-J62) -> 18874.6732 | K50: =IF((K21-L62)<500,K21*15%,K21-L62) -> 33002.39931 | L50: =IF((L21-L62)<500,L21*15%,L21-L62) -> 44909.24147 | M50: 58481.14709 | N50: 71461.27022 | O50: 85013.78594 | P50: 99163.93541 | Q50: 113938.0729 | R50: 135063.7147 | S50: 151420.9471 | T50: =T21-T62 -> 168499.4947 | U50: 186331.1656 | V50: 204949.1708 | W50: 227238.1859 | X50: 247660.0935 | Y50: 268982.5588 | Z50: 291245.2941 | AA50: 314489.7632 | AB50: 341609.2582 | AC50: 367074.6585 | AD50: 393663.0224 | AE50: 421423.87 | AF50: 450408.9051 | AG50: 480672.1113 | AH50: 0 | AI50: =HLOOKUP($C$24,$I$48:$AH$56,3) -> 58481.14709 | AJ50: =G50 -> Generali Vision | AK50: =HLOOKUP($C$25,$I$48:$AH$56,3) -> 33002.39931 | AL50: =IF(AJ50=$C$30,AK50,0) -> 0 | AS50: =AS38 -> Hallmark | AT50: =L18*$AM$67 -> 53654.93299 | AU50: =L49*$AM$67 -> 53654.93299 | AV50: =D21*AM67*4 -> 48000
G51: =H22 -> OMI (Royal Skandia) | I51: =I22*(100-I63)% -> 10647.4325 | J51: 22405.74572 | K51: 34361.35837 | L51: 46564.1612 | M51: 59161.77347 | N51: 72166.96887 | O51: 85592.93432 | P51: 99453.28343 | Q51: 113762.0702 | R51: 128533.8035 | S51: 143222.849 | T51: 158387.1438 | U51: 174042.0642 | V51: 190203.4839 | W51: 209262.79 | X51: 231313.741 | Y51: 256453.1283 | Z51: 284780.8753 | AA51: 316400.1382 | AB51: 351417.4106 | AC51: 373317.6318 | AD51: 395926.4127 | AE51: 419266.678 | AF51: 443362.0942 | AG51: 468237.0934 | AH51: 0 | AI51: =HLOOKUP($C$24,$I$48:$AH$56,4) -> 59161.77347 | AJ51: OMI (Royal Skandia) | AK51: =HLOOKUP($C$25,$I$48:$AH$56,4) -> 34361.35837 | AL51: 0 | AS51: =AS39 -> Generali Vision | AT51: =L21*$AM$67 -> 46049.24147 | AU51: 44909.24147 | AV51: =AV50 -> 48000
G52: =H23 -> OMI EWA | I52: =I23 -> 11091.07552 | J52: =J23 -> 22090.17183 | K52: 33674.13121 | L52: 45632.87797 | M52: 57978.538 | N52: 70723.62949 | O52: 83881.07564 | P52: 97464.21776 | Q52: 111486.8288 | R52: 127248.4655 | S52: 141790.6205 | T52: 156803.2724 | U52: 172301.6436 | V52: 190203.4839 | W52: 206887.79 | X52: 224111.9002 | Y52: 241893.2792 | Z52: 260249.9569 | AA52: 279200.5465 | AB52: 298764.2634 | AC52: 318960.9448 | AD52: 339811.0696 | AE52: 361335.7792 | AF52: 383556.8993 | AG52: 406496.9614 | AH52: 0 | AI52: =HLOOKUP($C$24,$I$48:$AH$56,5) -> 57978.538 | AJ52: =G52 -> OMI EWA | AK52: =HLOOKUP($C$25,$I$48:$AH$56,5) -> 33674.13121 | AL52: =IF(AJ52=$C$30,AK52,0) -> 0 | AS52: OMI (Royal Skandia) | AT52: =L22*$AM$67 -> 46564.1612 | AU52: 46564.1612 | AV52: =AV51 -> 48000
G53: =H26 -> Hansard | I53: =I26*(100-I64)% -> 8590.479884 | J53: =J26*(100-J64)% -> 17481.70122 | K53: 28374.427 | L53: 39768.18965 | M53: =M26*(100-M64)% -> 54531.69356 | N53: =N26*(100-N64)% -> 67101.99839 | O53: 80236.86486 | P53: 93957.82909 | Q53: 108287.3808 | R53: 126099 | S53: 141834.706 | T53: 158257.4116 | U53: 175394.0052 | V53: 193272.5382 | W53: 214772.2705 | X53: 234341.2292 | Y53: 254748.572 | Z53: 276027.6804 | AA53: 298213.3567 | AB53: 324191.8814 | AC53: 348418.5825 | AD53: 373670.2116 | AE53: 399988.0486 | AF53: 427415.1126 | AG53: 455996.2318 | AH53: 0 | AI53: =HLOOKUP($C$24,$I$48:$AH$56,6) -> 54531.69356 | AJ53: Hansard | AK53: =HLOOKUP($C$25,$I$48:$AH$56,6) -> 28374.427 | AL53: 0 | AS53: =G52 -> OMI EWA | AT53: =L23*$AM$67 -> 45632.87797 | AU53: 45632.87797 | AV53: =AV51 -> 48000
G54: =H27 -> Ascentric | I54: =I27*(100-I65)% -> 12224.65913 | J54: =J27*(100-J65)% -> 25194.67218 | K54: 38958.22873 | L54: 53563.88009 | M54: 69063.14812 | N54: 85510.70688 | O54: 102964.5756 | P54: 121486.3233 | Q54: 141141.2859 | R54: 161998.7969 | S54: =S27*(100-S65)% -> 184132.4316 | T54: 207620.2671 | U54: 232545.1575 | V54: 258995.0258 | W54: 287063.1747 | X54: 316848.6155 | Y54: 348456.417 | Z54: 381998.0766 | AA54: 417591.9136 | AB54: 455363.486 | AC54: 495446.0341 | AD54: 537980.9503 | AE54: 583118.2777 | AF54: 631017.2392 | AG54: 681846.8 | AH54: 0 | AI54: =HLOOKUP($C$24,$I$48:$AH$56,7) -> 69063.14812 | AJ54: Ascentric | AK54: =HLOOKUP($C$25,$I$48:$AH$56,7) -> 38958.22873 | AL54: 0 | AS54: =AS41 -> Hansard | AT54: =L26*$AM$67 -> 39768.18965 | AU54: 39768.18965 | AV54: =AV53 -> 48000
G55: =H30 -> Royal London | I55: =I30-(I30*I66)% -> 9809.514258 | J55: 21621.2125 | K55: 32465.22164 | L55: 43756.12 | M55: 55509.12521 | N55: 67740.06098 | O55: 80465.37825 | P55: 93702.17734 | Q55: 107468.2307 | R55: 121782.007 | S55: =S30-(S30*S66)% -> 136662.6952 | T55: 152130.2311 | U55: 168205.323 | V55: 184909.4804 | W55: 202265.0416 | X55: 220295.2045 | Y55: 239024.0568 | Z55: 258476.6086 | AA55: 278678.8255 | AB55: 299657.6634 | AC55: 321441.1041 | AD55: 344058.1929 | AE55: 367539.077 | AF55: 391915.0459 | AG55: 417218.5728 | AH55: 0 | AI55: =HLOOKUP($C$24,$I$48:$AH$56,8) -> 55509.12521 | AJ55: Royal London | AK55: =HLOOKUP($C$25,$I$48:$AH$56,8) -> 32465.22164 | AL55: 32465.22164 | AS55: =AS42 -> Ascentric | AT55: =L27*$AM$67 -> 53563.88009 | AU55: 53563.88009 | AV55: 48000
G56: =H33 -> Friends Provident | I56: =I33-(I33*I67)% -> 10256.49752 | J56: =J33-(J33*J67)% -> 21713.91917 | K56: 33023.31478 | L56: 44784.08264 | M56: 57013.71152 | N56: 69730.37291 | O56: 82952.94762 | P56: 96701.05343 | Q56: 110995.0738 | R56: 125856.1876 | S56: 141306.4005 | T56: 157368.5764 | U56: 174066.4719 | V56: 191424.7701 | W56: 209469.1174 | X56: 228226.1608 | Y56: 247723.5868 | Z56: 267990.162 | AA56: 289055.7752 | AB56: 310951.4811 | AC56: 333709.5457 | AD56: 357363.4937 | AE56: 381948.1572 | AF56: 407499.7272 | AG56: 434055.8058 | AH56: 0 | AI56: =HLOOKUP($C$24,$I$48:$AH$56,9) -> 57013.71152 | AJ56: Friends Provident | AK56: =HLOOKUP($C$25,$I$48:$AH$56,9) -> 33023.31478 | AL56: 0 | AS56: =AS43 -> Royal London | AT56: =L30*$AM$67 -> 43756.12 | AU56: 43756.12 | AV56: 48000
AI57: =AI54-AI50 -> 10582.00102 | AL57: =SUM(AL49:AL56) -> 32465.22164 | AS57: =AS44 -> Friends Provident | AT57: =L33*$AM$67 -> 44784.08264 | AU57: 44784.08264 | AV57: 48000
I58: 1 | J58: =I58+1 -> 2 | K58: =J58+1 -> 3 | L58: 4 | M58: 5 | N58: 6 | O58: 7 | P58: 8 | Q58: 9 | R58: 10 | S58: 11 | T58: 12 | U58: 13 | V58: 14 | W58: 15 | X58: 16 | Y58: 17 | Z58: 18 | AA58: 19 | AB58: 20 | AC58: 21 | AD58: 22 | AE58: 23 | AF58: 24 | AG58: 25
C59: Surrender Charge | D59: How often reduces | F59: Amount reduces by | G59: How many years? | I59: 1 Cost | J59: 2 Cost | K59: 3 Cost | L59: 4 Cost | M59: 5 Cost | N59: 6 Cost | O59: 7 Cost | P59: 8 Cost | Q59: 9 Cost | R59: 10 Cost
AM60: Currency In | AN60: Currency Out | AR60: Input sheet data table | AT60: Fee change 2%
A61: =G49 -> Hallmark | F61: 0 | G61: 0 | AM61: EURO (€) | AN61: EURO (€) | AO61: £/€ | AP61: 1.22 | AR61: Min | AS61: =MIN(AI49:AI56) -> 54531.69356 | AT61: =SUM(AS61*2%) -> 1090.633871
A62: =G50 -> Generali Vision | D62: quarterly | F62: =IF(E22,0.1,0.4) -> 0.4 | G62: 5 | I62: =HLOOKUP($C$24-I58,$G$73:$AE$77,5) -> 4560 | J62: =IF(I62<=0,0,HLOOKUP($C$24-J58,$G$73:$AE$77,5)) -> 3420 | K62: 2280 | L62: 1140 | M62: 0 | N62: 0 | O62: 0 | P62: 0 | Q62: 0 | R62: 0 | S62: 0 | T62: 0 | U62: 0 | V62: 0 | W62: 0 | X62: 0 | Y62: 0 | Z62: 0 | AA62: 0 | AB62: 0 | AC62: 0 | AD62: 0 | AE62: 0 | AF62: 0 | AG62: 0 | AM62: GBP (£) | AN62: GBP (£) | AO62: £/$ | AP62: 1.66 | AR62: Max | AS62: =MAX(AI49:AI56) -> 69063.14812 | AT62: =SUM(AS62*2%) -> 1381.262962
A63: =G51 -> OMI (Royal Skandia) | D63: annually | F63: 1 | G63: 8 | I63: =IF(OR($C$25=1,$C$24>18),90,HLOOKUP($C$26-I$58,$G$73:$AE$77,3)) -> 4 | J63: =HLOOKUP($C$26-J$58,$G$73:$AE$77,3) -> 0.6 | K63: =IF(J63<1,0,HLOOKUP($C$26-K$58,$G$73:$AE$77,3)) -> 0 | L63: 0 | M63: 0 | N63: 0 | O63: =IF(N63<1,0,HLOOKUP($C$26-O$58,$G$73:$AE$77,3)) -> 0 | P63: 0 | Q63: 0 | R63: 0 | S63: 0 | T63: 0 | U63: 0 | V63: 0 | W63: 0 | X63: 0 | Y63: 0 | Z63: 0 | AA63: 0 | AB63: 0 | AC63: 0 | AD63: 0 | AE63: 0 | AF63: 0 | AG63: 0 | AM63: USD ($) | AN63: USD ($) | AO63: €/$ | AP63: 1.37 | AR63: Difference | AS63: =SUM(AS62-AS61) -> 14531.45456 | AT63: =SUM(AT62-AT61) -> 290.6290912
A64: =G53 -> Hansard | D64: annually | F64: =IF(E22,0.8,1.1) -> 1.1 | G64: =IF(E22,5,8) -> 8 | I64: =IF(OR($C$25=1,$C$24>18),90,HLOOKUP($C$26-I$58,$G$73:$AE$77,2)) -> 8 | J64: =HLOOKUP($C$26-J$58,$G$73:$AE$77,2) -> 0 | K64: =IF(J64=0,0,HLOOKUP($C$26-K$58,$G$73:$AE$77,2)) -> 0 | L64: 0 | M64: 0 | N64: =IF(M64=0,0,HLOOKUP($C$26-N$58,$G$73:$AE$77,2)) -> 0 | O64: =IF(N64=0,0,HLOOKUP($C$26-O$58,$G$73:$AE$77,2)) -> 0 | P64: 0 | Q64: =IF(P64=0,0,HLOOKUP($C$26-Q$58,$G$73:$AE$77,2)) -> 0 | R64: 0 | S64: 0 | T64: 0 | U64: 0 | V64: 0 | W64: 0 | X64: 0 | Y64: 0 | Z64: 0 | AA64: 0 | AB64: 0 | AC64: 0 | AD64: 0 | AE64: 0 | AF64: 0 | AG64: 0 | AM64: User input: | AN64: User input: | AR64: % | AS64: =(AS62-AS61)/AS61 -> 0.2664772284
A65: Ascentric | F65: 0 | G65: 0 | AM65: 2 | AN65: 2
A66: =G55 -> Royal London | F66: =C66/5 -> 0 | G66: 5 | I66: =IF(OR($C$25=1,$C$24>18),90,HLOOKUP($C$26-I$58,$G$73:$AE$77,2)) -> 8 | J66: =HLOOKUP($C$26-J$58,$G$73:$AE$77,2) -> 0 | K66: =IF(J66=0,0,HLOOKUP($C$26-K$58,$G$73:$AE$77,2)) -> 0 | L66: 0 | M66: 0 | N66: =IF(M66=0,0,HLOOKUP($C$26-N$58,$G$73:$AE$77,2)) -> 0 | O66: =IF(N66=0,0,HLOOKUP($C$26-O$58,$G$73:$AE$77,2)) -> 0 | P66: 0 | Q66: =IF(P66=0,0,HLOOKUP($C$26-Q$58,$G$73:$AE$77,2)) -> 0 | R66: 0 | S66: 0 | T66: 0 | U66: 0 | V66: 0 | W66: 0 | X66: 0 | Y66: 0 | Z66: 0 | AA66: 0 | AB66: 0 | AC66: 0 | AD66: 0 | AE66: 0 | AF66: 0 | AG66: 0 | AM66: =IF(AM65=3,AM63,IF(AM65=2,AM62,AM61)) -> GBP (£) | AN66: =IF(AN65=3,AN63,IF(AN65=2,AN62,AN61)) -> GBP (£)
A67: Friends Provident | F67: 1.105 | G67: 10 | I67: =IF(OR($C$25=1,$C$24>18),90,HLOOKUP($C$26-I$58,$G$73:$AE$77,4)) -> 6 | J67: =HLOOKUP($C$26-J$58,$G$73:$AE$77,4) -> 0 | K67: =IF(J67=0,0,HLOOKUP($C$26-K$58,$G$73:$AE$77,4)) -> 0 | L67: 0 | M67: 0 | N67: =IF(M67=0,0,HLOOKUP($C$26-N$58,$G$73:$AE$77,4)) -> 0 | O67: =IF(N67=0,0,HLOOKUP($C$26-O$58,$G$73:$AE$77,4)) -> 0 | P67: 0 | Q67: =IF(P67=0,0,HLOOKUP($C$26-Q$58,$G$73:$AE$77,4)) -> 0 | R67: 0 | S67: 0 | T67: 0 | U67: 0 | V67: 0 | W67: 0 | X67: 0 | Y67: 0 | Z67: 0 | AA67: 0 | AB67: 0 | AC67: 0 | AD67: 0 | AE67: 0 | AF67: 0 | AG67: 0 | AM67: =IF(AM65=1,IF(AN65=2,1/AP61,AP63),IF(AM65=AN65,1,IF(AM65=2,IF(AN65=1,AP61,AP62),IF(AM65=3,IF(AN65=1,1/AP63,1/AP62))))) -> 1
G73: 0 | H73: 1 | I73: 2 | J73: 3 | K73: 4 | L73: 5 | M73: 6 | N73: 7 | O73: 8 | P73: 9 | Q73: 10 | R73: 11 | S73: 12 | T73: 13 | U73: 14 | V73: =U73+1 -> 15 | W73: =V73+1 -> 16 | X73: 17 | Y73: 18 | Z73: 19 | AA73: 20 | AB73: 21 | AC73: 22 | AD73: 23 | AE73: 24
F74: Royal London | G74: 0 | H74: 8 | I74: 15.5 | J74: 22 | K74: 28.5 | L74: 34 | M74: 39.5 | N74: 44 | O74: 48.5 | P74: 52.5 | Q74: 56.5 | R74: 60 | S74: 63 | T74: 66 | U74: 69 | V74: 71.5 | W74: 73.5 | X74: 75.5 | Y74: 77.5 | Z74: 79.5 | AA74: 81 | AB74: 82.5 | AC74: 84 | AD74: 85.5 | AE74: 86.5
F75: Royal Skandia | G75: 0.6 | H75: =60/15 -> 4 | I75: =H75+$H$75 -> 8 | J75: =I75+$H$75 -> 12 | K75: 16 | L75: 20 | M75: 24 | N75: 28 | O75: 32 | P75: 36 | Q75: 40 | R75: 44 | S75: 48 | T75: 52 | U75: 56 | V75: 60 | W75: 64 | X75: 68 | Y75: 72 | Z75: 76 | AA75: 80 | AB75: 84 | AC75: 88 | AD75: 92 | AE75: 96
F76: Friends Provident | G76: 0 | H76: 6 | I76: =H76+6 -> 12 | J76: =I76+6 -> 18 | K76: 24 | L76: 30 | M76: 36 | N76: =M76+3 -> 39 | O76: =N76+3 -> 42 | P76: 45 | Q76: 48 | R76: 51 | S76: 54 | T76: 57 | U76: 60 | V76: =U76+4 -> 64 | W76: =V76+4 -> 68 | X76: 72 | Y76: =X76+3 -> 75 | Z76: =Y76+3 -> 78 | AA76: 81 | AB76: 84 | AC76: 87 | AD76: =AC76+3 -> 90 | AE76: =AD76+3 -> 93
F77: Generali | G77: 0 | H77: =H78 -> 1140 | I77: =H77+I78 -> 2280 | J77: =I77+J78 -> 3420 | K77: 4560 | L77: 4560 | M77: 4560 | N77: 4560 | O77: 4560 | P77: 4560 | Q77: 4560 | R77: =Q77+R78 -> 4560 | S77: =R77+S78 -> 4560 | T77: =S77+T78 -> 4560 | U77: =T77+U78 -> 4560 | V77: =U77+V78 -> 4560 | W77: =V77+W78 -> 4560 | X77: =W77+X78 -> 4560 | Y77: 4560 | Z77: =Y77+Z78 -> 4560 | AA77: =Z77+AA78 -> 4560 | AB77: =AA77+AB78 -> 4560 | AC77: =AB77+AC78 -> 4560 | AD77: =AC77+AD78 -> 4560 | AE77: =AD77+AE78 -> 4560
F78: Generali | G78: 0 | H78: =IF(C24<11,C21*C24*2%,(C21*10*2%)+(C21*(C24-10)*0.3%)) -> 1140 | I78: =H78 -> 1140 | J78: =I78 -> 1140 | K78: =IF($C$24>K73,J78,0) -> 1140 | L78: =IF($C$24>L73,K78,0) -> 0 | M78: 0 | N78: 0 | O78: 0 | P78: 0 | Q78: 0 | R78: 0 | S78: 0 | T78: 0 | U78: 0 | V78: 0 | W78: 0 | X78: 0 | Y78: 0 | Z78: 0 | AA78: 0 | AB78: 0 | AC78: 0 | AD78: 0 | AE78: 0
I83: =(100-I62)% -> -44.6
